bitfinex/quotes_ETHUSD_20251125
["timestamp","ask_amount","ask_price","bid_price","bid_amount"]
[1764080891395,1.04002789,2918.7,2918.6,0.001]
[1764080891698,0.719904,2918.7,2918.6,0.001]
[1764080892005,0.35722728,2918.7,2918.6,0.001]
[1764080892175,5.38100827,2918.7,2918.6,0.001]
[1764080892509,6.43821704,2918.7,2918.6,0.001]
[1764080892679,6.39538976,2918.7,2918.6,0.001]
[1764080893292,6.39552332,2918.7,2918.6,0.001]
[1764080893899,6.4383506,2918.7,2918.6,0.001]
[1764080896174,6.39552332,2918.7,2918.6,0.001]
[1764080897391,6.39566132,2918.7,2918.6,0.001]
[1764080897593,6.17766132,2918.7,2918.6,0.001]
[1764080897795,6.4384886,2918.7,2918.6,0.001]
[1764080898575,6.39566132,2918.7,2918.6,0.001]
[1764080898778,6.4384886,2918.7,2918.6,0.001]
[1764080899293,6.39566132,2918.7,2918.6,0.001]
[1764080899879,6.4384886,2918.7,2918.6,0.001]
[1764080901480,6.39566132,2918.7,2918.6,0.001]
[1764080902764,6.4384886,2918.7,2918.6,0.001]
[1764080903099,6.4384886,2918.7,2918.1,0.001]
[1764080903100,30.0,2918.2,2918.1,0.001]
[1764080903302,6.90076867,2918.2,2918.1,0.001]
[1764080903505,10.89043859,2918.2,2918.1,0.001]
[1764080904115,24.42538359,2918.2,2918.1,0.001]
[1764080904280,17.42575459,2918.2,2918.1,0.001]
[1764080904604,15.74262459,2918.2,2918.1,0.001]
[1764080904806,13.14682159,2918.2,2918.1,0.001]
[1764080904975,12.87782159,2918.2,2918.1,0.001]
[1764080905176,6.39544836,2918.2,2918.1,0.001]
[1764080905812,7.09879504,2918.2,2918.1,0.001]
[1764080905978,7.31679504,2918.2,2918.1,0.001]
[1764080906609,6.39544836,2918.2,2918.1,0.001]
[1764080906822,14.11461498,2918.2,2918.1,0.001]
[1764080907110,4.74409811,2918.1,2917.3,0.001]
[1764080907277,19.3768158,2918.0,2917.3,0.001]
[1764080907479,23.22888304,2918.0,2917.3,0.001]
[1764080907713,25.27498104,2918.0,2917.3,0.001]
[1764080908012,24.60454004,2918.0,2917.3,0.001]
[1764080908312,23.37534323,2918.0,2917.3,0.001]
[1764080908503,24.22583937,2918.0,2917.3,0.001]
[1764080908703,26.09039137,2918.0,2917.3,0.001]
[1764080908892,24.86157423,2918.0,2917.3,0.001]
[1764080909493,10.34198069,2918.0,2917.3,0.001]
[1764080909693,24.40668669,2918.0,2917.3,0.001]
[1764080909895,23.17766423,2918.0,2917.3,0.001]
[1764080910817,29.40917523,2918.0,2917.3,0.001]
[1764080911187,29.19117523,2918.0,2917.3,0.001]
[1764080911390,29.40917523,2918.0,2917.3,0.001]
[1764080911927,9.30119823,2918.0,2917.3,0.001]
[1764080912818,16.28037023,2918.0,2917.3,0.001]
[1764080913691,12.87703123,2918.0,2917.3,0.001]
[1764080913897,10.88373223,2918.0,2917.3,0.001]
[1764080914093,12.11239439,2918.0,2917.3,0.001]
[1764080914294,11.03509139,2918.0,2917.3,0.001]
[1764080914499,1.05748033,2918.0,2917.5,0.468]
[1764080914720,1.27548033,2918.0,2917.9,0.4669]
[1764080914887,0.53809123,2918.0,2917.9,0.4669]
[1764080915219,0.94359523,2918.0,2917.9,0.4669]
[1764080915383,1.68098433,2918.0,2917.9,0.4669]
[1764080916228,1.46298433,2918.0,2917.9,0.4669]
[1764080916518,0.218,2918.0,2917.9,4.36202224]
[1764080917483,0.002,2918.7,2917.9,7.78914448]
[1764080917689,1.04550366,2918.6,2918.3,0.4659]
[1764080917897,0.72541355,2918.5,2918.1,3.42688735]
[1764080918126,0.31990955,2918.4,2918.1,7.5132747]
[1764080918342,0.218,2918.4,2918.2,0.468]
[1764080918525,0.218,2918.4,2918.3,0.4659]
[1764080918920,0.002,2918.7,2918.3,0.9339]
[1764080919248,0.3218869,2918.7,2918.6,0.4659]
[1764080919441,0.5398869,2918.7,2918.6,0.4659]
[1764080919643,0.9453909,2918.7,2918.6,0.4659]
[1764080920413,0.625504,2918.7,2918.6,0.4659]
[1764080920749,0.625504,2918.7,2918.6,4.36020028]
[1764080920750,0.22,2918.7,2918.6,4.36020028]
[1764080921329,0.002,2918.7,2918.6,4.36020028]
[1764080921867,0.22,2918.7,2918.6,4.36020028]
[1764080923355,0.22,2918.7,2918.6,0.9339]
[1764080923517,0.22,2918.7,2918.6,4.36020028]
[1764080925669,0.002,2918.7,2918.6,4.36020028]
[1764080925875,0.22,2918.7,2918.6,4.36020028]
[1764080928358,0.2192,2918.7,2918.6,4.36020028]
[1764080930664,0.0012,2918.7,2918.6,4.36020028]
[1764080930841,0.2192,2918.7,2918.6,4.36020028]
[1764080937017,0.0012,2918.7,2918.6,4.36020028]
[1764080937275,0.2192,2918.7,2918.6,4.36020028]
[1764080938285,0.2192,2918.7,2918.6,3.89220028]
[1764080938482,0.2192,2918.7,2918.6,4.38240028]
[1764080940453,0.0012,2918.7,2918.6,8.65836458]
[1764080942165,0.4608,2921.9,2919.5,0.6765]
[1764080942468,5.048975,2921.7,2920.3,0.4819]
[1764080942666,5.048975,2921.7,2919.6,0.485]
[1764080942667,1.98974404,2921.6,2919.6,0.485]
[1764080942966,2.951029,2921.4,2919.7,0.485]
[1764080943166,1.34308176,2921.3,2919.7,0.485]
[1764080943590,0.405504,2921.1,2919.9,0.72559411]
[1764080943886,0.405504,2920.9,2919.9,0.72559411]
[1764080944061,0.405504,2920.9,2920.0,0.485]
[1764080944262,0.452204,2920.9,2920.0,0.485]
[1764080944563,0.452204,2920.9,2920.1,0.1946]
[1764080945097,0.452204,2920.9,2920.2,0.485]
[1764080945458,0.913004,2920.9,2920.2,3.42442298]
[1764080945814,0.913004,2920.9,2920.1,3.61910099]
[1764080946306,0.913004,2920.9,2920.2,0.485]
[1764080946461,0.586404,2921.1,2920.2,0.485]
[1764080946655,0.405504,2920.9,2920.2,0.485]
[1764080947764,0.405504,2920.9,2920.3,6.84861144]
[1764080948500,0.405504,2920.9,2920.3,3.42430572]
[1764080948697,0.866304,2920.9,2920.3,6.84861144]
[1764080948918,0.866304,2920.9,2920.1,3.61905799]
[1764080949080,0.1346,2920.4,2919.8,0.485]
[1764080949284,0.218,2920.3,2919.8,0.485]
[1764080949865,0.218,2920.3,2919.9,6.84954964]
[1764080950298,0.218,2920.3,2920.0,0.485]
[1764080950603,0.218,2920.3,2920.2,0.4819]
[1764080951301,0.218,2920.3,2920.2,0.9669]
[1764080951883,0.218,2920.3,2920.2,4.39132298]
[1764080952068,0.2172,2920.3,2920.2,4.39132298]
[1764080952703,0.218,2920.4,2920.2,7.81574596]
[1764080953202,0.1809,2921.1,2920.7,0.4819]
[1764080953403,0.218,2921.0,2920.7,0.4819]
[1764080953806,0.1346,2920.8,2920.5,3.4240328]
[1764080954006,0.405504,2920.7,2920.2,3.42442298]
[1764080954378,0.866304,2920.7,2920.2,3.42442298]
[1764080954709,0.1804,2920.9,2920.2,7.33384596]
[1764080954710,0.405504,2920.8,2920.2,7.33384596]
[1764080954922,0.405504,2920.8,2920.2,3.42442298]
[1764080955087,0.405504,2920.8,2920.2,6.84884596]
[1764080955403,0.218,2920.7,2920.2,7.33384596]
[1764080957196,0.218,2920.7,2919.5,3.61978545]
[1764080957197,0.135,2920.3,2919.8,3.42481342]
[1764080957421,0.218,2920.2,2919.8,6.84970553]
[1764080957785,0.218,2920.2,2919.8,3.42481342]
[1764080958012,0.6788,2920.2,2919.8,6.84970553]
[1764080958418,0.6788,2920.2,2919.6,6.85025344]
[1764080958785,0.218,2920.2,2919.6,7.33525344]
[1764080959222,0.218,2920.2,2919.6,6.85025344]
[1764080959397,0.405504,2920.1,2919.6,3.42512672]
[1764080959797,0.866304,2920.1,2919.6,6.85025344]
[1764080960325,0.866304,2920.1,2919.2,3.42559605]
[1764080960326,0.4692,2919.7,2919.2,3.42559605]
[1764080960497,0.218,2919.6,2919.2,6.8511921]
[1764080960696,0.218,2919.6,2919.2,7.3250921]
[1764080960909,0.218,2919.6,2919.2,6.8511921]
[1764080961104,0.218,2919.6,2919.5,0.4785]
[1764080961623,0.218,2919.6,2919.3,0.4739]
[1764080961924,0.218,2919.6,2919.5,0.4785]
[1764080962504,0.218,2919.6,2919.5,3.90374404]
[1764080962833,0.218,2919.6,2919.5,0.4795]
[1764080963010,0.218,2919.6,2919.5,0.001]
[1764080963825,0.405504,2919.8,2919.5,0.001]
[1764080964031,0.677604,2919.6,2919.5,0.001]
[1764080964432,1.137804,2919.6,2919.5,0.001]
[1764080965228,0.895604,2919.6,2919.5,0.001]
[1764080965795,4.32073072,2919.6,2919.5,0.001]
[1764080966035,4.78093072,2919.6,2919.5,0.001]
[1764080966729,4.56293072,2919.6,2919.5,0.001]
[1764080966939,4.78093072,2919.6,2919.5,0.001]
[1764080967930,1.137804,2919.6,2919.5,0.001]
[1764080968135,1.355804,2919.6,2919.5,0.001]
[1764080968312,4.78093072,2919.6,2919.5,0.001]
[1764080970000,4.8237448,2919.6,2919.5,0.001]
[1764080970206,4.78093072,2919.6,2919.5,0.001]
[1764080973035,0.677604,2919.6,2919.5,0.001]
[1764080973222,0.895604,2919.6,2919.5,0.001]
[1764080974141,4.32073072,2919.6,2919.5,0.001]
[1764080974437,0.895604,2919.6,2919.5,0.001]
[1764080975137,0.895604,2919.6,2919.5,0.4795]
[1764080975138,0.623504,2919.6,2919.5,0.4795]
[1764080975338,0.218,2919.6,2919.5,0.9534]
[1764080976112,0.2172,2919.6,2919.5,4.37864404]
[1764080977144,4.78213072,2919.6,2919.5,0.001]
[1764080977344,0.405504,2919.5,2919.3,0.001]
[1764080977557,14.633806,2919.4,2919.3,0.001]
[1764080977738,15.06990762,2919.4,2919.3,0.001]
[1764080978051,11.69386671,2919.4,2919.3,0.001]
[1764080978341,11.26275471,2919.4,2919.3,0.001]
[1764080978545,0.405504,2919.1,2919.0,0.001]
[1764080978844,27.47345675,2919.1,2919.0,0.001]
[1764080979049,27.89273534,2919.1,2919.0,0.001]
[1764080979251,27.02533334,2919.1,2919.0,0.001]
[1764080979414,29.14533334,2919.1,2919.0,0.001]
[1764080979744,30.19033334,2919.1,2919.0,0.001]
[1764080980541,5.92302374,2919.1,2919.0,0.001]
[1764080980722,35.96584515,2919.1,2919.0,0.001]
[1764080980935,35.92302374,2919.1,2919.0,0.001]
[1764080981635,35.31425674,2919.1,2919.0,0.001]
[1764080982321,8.62159374,2919.1,2919.0,0.001]
[1764080982549,5.23961151,2919.1,2919.0,0.001]
[1764080982735,7.91143292,2919.1,2919.0,0.001]
[1764080983057,5.23961151,2919.1,2919.0,0.001]
[1764080983224,7.25739892,2919.1,2919.0,0.001]
[1764080983552,5.23961151,2919.1,2919.0,0.001]
[1764080984124,5.28243292,2919.1,2919.0,0.001]
[1764080984325,5.23961151,2919.1,2919.0,0.001]
[1764080985343,7.68743292,2919.1,2919.0,0.001]
[1764080985658,7.64461151,2919.1,2919.0,0.001]
[1764080985821,5.23961151,2919.1,2919.0,0.001]
[1764080987061,4.77751151,2919.1,2919.0,0.001]
[1764080988026,5.23961151,2919.1,2919.0,0.001]
[1764080988234,5.96584515,2919.1,2919.0,0.001]
[1764080988428,38.83312791,2918.8,2918.7,0.001]
[1764080988669,40.24109517,2918.8,2918.7,0.001]
[1764080988837,40.70319517,2918.8,2918.7,0.001]
[1764080994677,40.26709355,2918.8,2918.7,0.001]
[1764080994865,35.11710755,2918.8,2918.7,0.001]
[1764080995070,3.4260655,2918.8,2918.7,0.001]
[1764080995270,3.6440655,2918.8,2918.7,0.001]
[1764080995576,3.4260655,2918.8,2918.7,0.4517]
[1764080995877,3.6440655,2918.8,2918.7,0.4517]
[1764080996181,4.77516361,2918.8,2918.7,0.4517]
[1764080997080,4.55716361,2918.8,2918.7,0.4517]
[1764080997447,4.77516361,2918.8,2918.7,0.4517]
[1764080997659,5.26666361,2918.8,2918.7,0.001]
[1764080997869,5.51156361,2918.8,2918.7,0.001]
[1764080998071,8.79916442,2918.8,2918.7,0.001]
[1764080998281,8.75633861,2918.8,2918.7,0.001]
[1764080998582,8.51143861,2918.8,2918.7,0.001]
[1764080998749,9.70169261,2918.8,2918.7,0.001]
[1764080998944,5.26666361,2918.8,2918.7,0.001]
[1764080999391,4.55716361,2918.8,2918.7,0.001]
[1764080999682,39.81508132,2918.8,2918.7,0.001]
[1764080999874,39.59708132,2918.8,2918.7,0.001]
[1764081000077,40.48495621,2918.8,2918.7,0.001]
[1764081000307,40.48495621,2918.8,2918.5,0.001]
[1764081000308,1.13369811,2918.7,2918.5,0.001]
[1764081000459,0.2615,2917.7,2917.0,0.001]
[1764081000665,0.2615,2917.7,2915.3,0.001]
[1764081000666,4.018504,2917.0,2915.5,0.1849]
[1764081000973,30.0,2915.9,2915.3,0.001]
[1764081001181,30.0,2915.9,2914.7,0.001]
[1764081001182,0.405504,2915.1,2914.7,0.001]
[1764081001382,30.0,2915.0,2914.7,0.001]
[1764081001588,30.842604,2914.8,2914.7,0.001]
[1764081001891,4.79243811,2914.8,2914.7,0.001]
[1764081002198,0.405504,2914.1,2914.0,0.001]
[1764081002352,14.49176911,2914.1,2914.0,0.001]
[1764081002549,4.70224811,2914.1,2914.0,0.001]
[1764081002748,1.13109811,2914.1,2914.0,0.001]
[1764081002981,1.34909811,2914.1,2914.0,0.001]
[1764081003282,3.40540311,2914.1,2914.0,0.001]
[1764081003583,0.405504,2914.1,2914.0,0.979]
[1764081003746,3.42909525,2916.3,2914.0,0.979]
[1764081003747,0.219,2914.4,2914.0,0.979]
[1764081003948,3.56965528,2916.0,2914.2,0.72559411]
[1764081004192,4.29701771,2916.4,2914.5,4.29701771]
[1764081004193,0.219,2915.9,2914.5,4.29701771]
[1764081004393,0.1822,2916.5,2914.5,4.29701771]
[1764081004542,0.0952,2916.8,2915.8,0.1849]
[1764081004743,24.936592,2916.6,2915.8,0.1849]
[1764081004945,0.6906,2916.7,2915.8,0.1849]
[1764081004946,8.675,2916.5,2915.8,0.1849]
[1764081005175,6.17546,2916.4,2915.8,0.4915]
[1764081005377,0.219,2916.3,2915.8,0.4915]
[1764081005579,0.219,2916.3,2915.8,3.92103613]
[1764081005785,0.1822,2917.4,2915.8,3.92103613]
[1764081005786,0.219,2916.2,2915.8,3.92103613]
[1764081005946,3.4278271,2917.3,2915.5,0.1849]
[1764081005947,0.219,2916.1,2915.9,0.4915]
[1764081006362,0.219,2916.1,2915.5,0.1849]
[1764081006363,0.219,2916.1,2915.5,0.6764]
[1764081006559,0.405504,2916.0,2915.5,0.6764]
[1764081007194,0.405504,2916.0,2914.7,0.72559411]
[1764081007195,0.405504,2915.8,2915.1,0.1849]
[1764081007358,1.13109811,2915.6,2915.1,0.1849]
[1764081007565,1.13109811,2915.4,2914.6,0.4915]
[1764081007903,0.405504,2915.2,2914.6,0.4915]
[1764081008248,0.405504,2915.2,2914.1,0.1849]
[1764081008449,0.405504,2915.2,2914.3,0.4915]
[1764081008648,0.405504,2915.0,2914.2,0.4915]
[1764081008880,0.405504,2914.8,2914.2,0.4915]
[1764081009281,0.219,2914.7,2914.2,0.4915]
[1764081009483,0.219,2914.7,2914.3,3.43135572]
[1764081009801,0.6538,2915.9,2914.3,6.86271144]
[1764081009802,8.928662,2915.7,2914.3,6.86271144]
[1764081010000,1.13109811,2915.3,2914.4,0.4915]
[1764081010302,0.405504,2914.6,2914.1,0.1849]
[1764081010505,0.405504,2914.4,2914.0,0.001]
[1764081010688,4.053534,2914.1,2914.0,0.001]
[1764081010866,4.77912811,2914.1,2914.0,0.001]
[1764081011066,5.46972811,2914.1,2914.0,0.001]
[1764081011559,8.68231933,2914.1,2914.0,0.001]
[1764081011884,24.08693433,2914.1,2914.0,0.001]
[1764081012907,24.08693433,2914.1,2913.8,0.001]
[1764081012908,1.13109811,2914.0,2913.8,0.001]
[1764081013057,36.08191582,2913.9,2913.8,0.001]
[1764081013400,20.87316082,2913.9,2913.8,0.001]
[1764081013602,8.64487887,2913.9,2913.8,0.001]
[1764081013750,5.43572487,2913.9,2913.8,0.001]
[1764081013950,25.48828287,2913.9,2913.8,0.001]
[1764081014449,7.61210211,2913.9,2913.8,0.001]
[1764081014654,8.72371587,2913.9,2913.8,0.001]
[1764081014887,4.29701771,2914.7,2913.8,0.001]
[1764081014888,6.86129884,2914.9,2913.8,0.4925]
[1764081015101,11.75647971,2914.7,2913.8,0.001]
[1764081015278,5.25477711,2913.9,2913.8,0.001]
[1764081015459,4.37642087,2913.9,2913.8,0.001]
[1764081015787,17.89658987,2913.9,2913.8,0.001]
[1764081016180,15.49968087,2913.9,2913.8,0.001]
[1764081016394,14.93144187,2913.9,2913.8,0.001]
[1764081016785,22.43027587,2913.9,2913.8,0.001]
[1764081017181,17.41627687,2913.9,2913.8,0.001]
[1764081017384,0.94559411,2913.9,2913.8,0.001]
[1764081017681,4.78292487,2913.9,2913.8,0.001]
[1764081017990,35.2974227,2913.9,2913.8,0.001]
[1764081018302,23.27005787,2913.9,2913.8,0.001]
[1764081019074,23.27005787,2913.9,2913.5,0.001]
[1764081019075,1.13109811,2913.6,2913.5,0.001]
[1764081019405,31.60269811,2913.6,2913.5,0.001]
[1764081019812,0.4716,2914.3,2913.5,0.001]
[1764081020110,10.305818,2913.8,2913.5,0.001]
[1764081020317,0.72559411,2913.9,2913.5,0.001]
[1764081020318,0.405504,2913.6,2913.5,0.001]
[1764081020519,11.94876911,2913.6,2913.5,0.001]
[1764081020719,12.43176911,2913.6,2913.5,0.001]
[1764081021076,12.65176911,2913.6,2913.5,0.001]
[1764081021288,13.08787073,2913.6,2913.5,0.001]
[1764081021508,31.83409811,2913.6,2913.5,0.001]
[1764081021809,35.26627823,2913.6,2913.5,0.001]
[1764081022105,8.63650123,2913.6,2913.5,0.001]
[1764081022475,8.00426323,2913.6,2913.5,0.001]
[1764081022675,3.43185027,2913.9,2913.5,0.001]
[1764081022676,3.963888,2913.9,2913.5,0.001]
[1764081022900,0.22,2913.6,2913.5,0.001]
[1764081023083,5.060177,2913.6,2913.5,0.001]
[1764081023294,0.22,2913.6,2913.5,0.001]
[1764081023697,4.78327823,2913.6,2913.5,0.001]
[1764081024092,0.94479411,2913.6,2913.5,0.4534]
[1764081024297,4.37697423,2913.6,2913.5,0.001]
[1764081024534,12.82046948,2913.6,2913.5,0.001]
[1764081024831,8.69019423,2913.6,2913.5,0.001]
[1764081025205,1.35029811,2913.6,2913.5,0.001]
[1764081025404,4.78247823,2913.6,2913.5,0.001]
[1764081025604,8.25790048,2913.6,2913.5,0.001]
[1764081025811,7.35706523,2913.6,2913.5,0.001]
[1764081026205,22.62321423,2913.6,2913.5,0.001]
[1764081026407,21.43741823,2913.6,2913.5,0.001]
[1764081026902,21.43741823,2913.6,2913.2,0.001]
[1764081026903,4.018504,2913.3,2913.2,0.001]
[1764081027103,5.22709811,2913.3,2913.2,0.001]
[1764081027303,35.22709811,2913.3,2913.2,0.001]
[1764081027704,38.65963166,2913.3,2913.2,0.001]
[1764081028112,4.018504,2912.9,2911.9,0.6373]
[1764081028333,1.13109811,2912.5,2911.9,0.1849]
[1764081028540,0.405504,2912.1,2911.5,0.4524]
[1764081028691,0.405504,2911.9,2911.4,0.1812]
[1764081028893,0.405504,2911.9,2911.2,0.1812]
[1764081029342,1.13109811,2911.7,2911.2,0.1812]
[1764081029545,0.405504,2911.5,2911.2,0.1812]
[1764081030040,0.405504,2911.5,2910.9,0.1849]
[1764081030041,0.405504,2911.3,2910.9,0.6373]
[1764081030201,0.72559411,2911.4,2910.9,0.1849]
[1764081030552,0.405504,2911.3,2911.0,0.4524]
[1764081030712,0.72559411,2912.8,2912.1,0.1812]
[1764081031033,0.72559411,2912.6,2912.1,0.1812]
[1764081031234,0.04291845,2912.5,2912.1,0.1812]
[1764081031441,8.824846,2912.4,2911.4,0.4524]
[1764081031624,0.405504,2911.9,2911.3,0.1812]
[1764081031932,0.405504,2911.5,2910.9,0.1849]
[1764081032100,0.405504,2911.3,2911.0,0.4524]
[1764081032306,0.405504,2911.3,2910.9,0.1849]
[1764081032508,0.72559411,2911.7,2911.2,0.1812]
[1764081032702,0.405504,2911.5,2911.2,0.1812]
[1764081032923,0.405504,2911.5,2911.1,0.1812]
[1764081033136,0.72559411,2911.7,2911.1,0.6336]
[1764081033315,0.405504,2911.6,2911.2,0.4524]
[1764081033505,0.22,2911.5,2911.2,0.4524]
[1764081033725,0.22,2911.5,2911.1,0.1812]
[1764081034033,1.13109811,2911.4,2911.2,0.4524]
[1764081034409,1.13109811,2911.4,2911.1,0.1812]
[1764081034410,0.405504,2911.4,2911.3,0.4524]
[1764081034729,0.625504,2911.4,2911.2,0.4524]
[1764081034933,0.625504,2911.3,2911.2,0.4524]
[1764081035233,0.625504,2911.3,2911.2,0.9322]
[1764081035403,0.625504,2911.3,2911.2,0.4798]
[1764081035722,0.625504,2911.3,2911.2,0.9322]
[1764081036333,0.625504,2911.3,2911.2,0.4798]
[1764081036538,0.625504,2911.3,2910.9,0.1849]
[1764081036539,0.405504,2911.2,2910.9,0.1849]
[1764081036860,1.13109811,2911.2,2910.6,0.1812]
[1764081037143,0.405504,2911.1,2910.6,0.1812]
[1764081037622,0.22,2911.0,2910.7,0.4524]
[1764081037826,1.13109811,2911.0,2910.9,0.001]
[1764081038043,31.35109811,2911.0,2910.9,0.001]
[1764081038207,1.13109811,2910.6,2909.7,0.1812]
[1764081038420,0.405504,2910.4,2909.7,0.1812]
[1764081038619,0.22,2910.5,2909.5,0.4524]
[1764081038620,0.405504,2910.2,2909.5,0.4524]
[1764081038841,0.405504,2910.4,2909.5,0.4524]
[1764081039050,0.405504,2910.2,2909.5,0.4524]
[1764081039250,0.405504,2910.4,2909.5,0.4524]
[1764081039436,0.405504,2910.2,2909.5,0.4524]
[1764081039640,0.72559411,2910.2,2909.5,0.4524]
[1764081039956,4.51534824,2910.7,2909.5,0.4524]
[1764081039957,0.1332,2911.9,2910.1,0.661]
[1764081040115,11.909117,2911.7,2910.2,0.4798]
[1764081040322,0.22,2911.8,2910.2,0.9322]
[1764081040518,2.396226,2911.6,2910.2,0.9322]
[1764081040755,0.72559411,2911.3,2910.3,0.4524]
[1764081040958,0.22,2911.7,2910.3,0.4524]
[1764081040959,0.26293762,2911.2,2910.3,0.4524]
[1764081041161,0.405504,2910.8,2910.3,0.4524]
[1764081041367,0.405504,2910.8,2910.1,0.1812]
[1764081041368,0.405504,2910.6,2910.1,0.1812]
[1764081041664,0.22,2910.7,2909.4,0.1812]
[1764081041665,0.405504,2910.0,2909.4,0.1812]
[1764081041817,3.84224881,2909.8,2909.4,0.1812]
[1764081042022,0.405504,2909.8,2909.4,0.1812]
[1764081042241,0.22,2909.7,2909.4,4.07072784]
[1764081042557,0.405504,2909.6,2909.5,0.4524]
[1764081042769,0.405504,2909.6,2908.2,0.4524]
[1764081042770,1.13109811,2909.4,2908.2,0.4524]
[1764081043067,0.405504,2909.0,2908.2,0.4524]
[1764081043365,0.405504,2909.4,2908.2,0.4524]
[1764081043366,0.405504,2908.8,2908.2,0.4524]
[1764081043573,10.30931883,2910.0,2908.2,0.4524]
[1764081043758,0.405504,2909.6,2908.3,0.02071572]
[1764081043932,0.405504,2909.4,2908.4,0.4524]
[1764081044123,0.405504,2909.2,2908.4,0.4524]
[1764081044858,0.405504,2909.0,2908.4,0.4524]
[1764081045025,0.405504,2908.8,2908.4,0.4524]
[1764081045358,0.22,2908.7,2908.4,0.4524]
[1764081045659,0.22,2908.6,2908.4,0.4524]
[1764081045825,0.22,2908.6,2907.8,0.1812]
[1764081046031,0.405504,2908.5,2907.9,0.4524]
[1764081046234,1.13109811,2908.5,2907.8,0.1812]
[1764081046469,0.405504,2908.3,2907.4,0.4524]
[1764081046780,0.405504,2908.1,2907.4,0.4524]
[1764081046986,0.405504,2907.9,2907.1,0.4524]
[1764081047885,0.405504,2907.7,2907.1,0.4524]
[1764081048089,0.405504,2907.7,2906.9,0.1812]
[1764081048090,1.13109811,2907.7,2906.9,0.1812]
[1764081048247,0.22,2907.6,2906.9,0.6336]
[1764081048579,0.22,2907.6,2907.0,0.4524]
[1764081048734,0.22,2907.6,2906.7,0.1812]
[1764081048938,0.22,2907.6,2906.5,0.4524]
[1764081048939,0.72559411,2907.4,2906.5,0.4524]
[1764081049134,0.72559411,2907.2,2906.5,0.4524]
[1764081049366,0.22,2907.1,2906.4,0.1812]
[1764081049936,0.483,2907.5,2906.4,0.1812]
[1764081050138,0.405504,2907.2,2906.4,0.1812]
[1764081050337,0.405504,2907.0,2906.4,0.6488]
[1764081050660,0.405504,2906.8,2906.4,0.6488]
[1764081050863,0.405504,2906.6,2906.0,0.4676]
[1764081051173,0.405504,2906.6,2906.2,0.1924]
[1764081051359,0.405504,2906.6,2905.9,0.1812]
[1764081051671,0.405504,2906.6,2905.2,0.4676]
[1764081051672,1.13109811,2906.2,2905.2,0.4676]
[1764081051873,0.405504,2905.8,2905.2,0.4676]
[1764081052045,1.13109811,2905.6,2904.7,0.4676]
[1764081052246,0.405504,2905.4,2904.7,0.4676]
[1764081052449,0.405504,2905.4,2904.0,0.1812]
[1764081052638,1.13109811,2905.2,2904.1,0.4676]
[1764081052838,1.13109811,2905.1,2904.1,0.4676]
[1764081053047,1.13109811,2905.1,2903.2,0.1924]
[1764081053048,3.28158,2904.0,2903.2,0.1924]
[1764081053247,0.626504,2903.9,2903.2,0.1924]
[1764081053463,0.405504,2903.7,2903.2,0.66]
[1764081053663,0.47760162,2903.6,2903.2,0.1924]
[1764081054181,0.405504,2903.5,2903.2,0.1924]
[1764081054380,0.405504,2903.5,2903.0,0.1924]
[1764081054381,0.405504,2903.4,2903.0,0.1924]
[1764081054579,0.405504,2903.4,2902.3,0.1924]
[1764081054580,1.13109811,2903.2,2902.3,0.1924]
[1764081054746,3.44348454,2904.1,2903.1,0.1924]
[1764081054945,4.39157007,2904.4,2903.1,0.1924]
[1764081054946,0.405504,2903.9,2903.1,0.1924]
[1764081055177,0.405504,2903.9,2902.3,0.1924]
[1764081055471,0.221,2903.8,2903.1,0.1924]
[1764081055639,0.405504,2904.3,2903.1,0.1924]
[1764081055640,0.405504,2903.6,2903.1,0.1924]
[1764081055844,0.405504,2903.6,2903.2,0.4676]
[1764081056052,0.222,2903.7,2903.3,6.88871284]
[1764081056277,0.91589411,2904.8,2903.2,0.4676]
[1764081056278,0.0753,2905.6,2903.2,10.80092883]
[1764081056444,11.982363,2905.4,2903.3,0.72559411]
[1764081056775,4.39157007,2905.3,2903.3,0.4676]
[1764081057073,4.39157007,2905.3,2903.2,3.44447506]
[1764081057074,1.13109811,2904.8,2903.4,0.4676]
[1764081057273,0.222,2904.7,2903.4,0.4676]
[1764081057479,0.222,2904.6,2903.4,0.4676]
[1764081057993,0.222,2904.6,2904.5,0.1924]
[1764081058157,0.04301889,2905.7,2904.5,4.08942538]
[1764081058472,0.222,2905.6,2904.5,0.6465]
[1764081058680,0.26502037,2905.6,2904.6,0.4541]
[1764081058842,0.222,2905.6,2905.5,0.1927]
[1764081059042,0.222,2905.6,2904.6,0.4541]
[1764081059370,0.222,2905.6,2904.6,1.17969411]
[1764081059869,3.214955,2907.0,2904.8,4.39157007]
[1764081060073,4.39357007,2908.0,2904.8,11.05332751]
[1764081060074,0.72559411,2906.7,2904.8,11.05332751]
[1764081060377,0.222,2906.9,2905.3,0.72559411]
[1764081060582,0.222,2906.9,2906.6,0.1927]
[1764081060797,0.002,2908.0,2906.6,0.1927]
[1764081061000,5.51481,2907.1,2906.6,0.1927]
[1764081061293,0.222,2907.3,2906.3,0.1927]
[1764081061294,0.04299965,2907.0,2906.3,0.1927]
[1764081061493,0.04300113,2906.9,2906.3,0.1927]
[1764081061808,13.75857966,2907.7,2906.3,0.1927]
[1764081061809,0.222,2906.8,2906.4,0.4541]
[1764081062007,0.222,2906.8,2906.5,6.8811285]
[1764081062175,0.222,2906.8,2905.9,0.72559411]